bitfinex-derivatives/quotes_SOLF0:USTF0_20250907
["timestamp","ask_amount","ask_price","bid_price","bid_amount"]
[1757208572725,8.84018316,202.46,202.43,8.08]
[1757208573129,0.86018316,202.46,202.43,8.08]
[1757208573320,7.98,202.45,202.4,2.41806958]
[1757208573518,7.98,202.45,202.42,8.08]
[1757208573718,7.98,202.45,202.43,4.42424226]
[1757208573928,7.98,202.45,202.42,8.08]
[1757208574132,7.98,202.45,202.43,4.42422735]
[1757208574431,7.98,202.45,202.41,8.08]
[1757208574623,7.98,202.45,202.42,12.50391816]
[1757208574930,7.98,202.45,202.42,8.08]
[1757208578732,7.98,202.45,202.39,10.49806958]
[1757208578928,7.98,202.45,202.4,12.50468778]
[1757208579224,7.98,202.45,202.39,2.41806958]
[1757208579225,0.86018316,202.46,202.41,12.50468778]
[1757208579431,7.98,202.45,202.39,2.41806958]
[1757208579725,0.86018316,202.46,202.4,4.42587482]
[1757208579931,7.98,202.45,202.39,2.41806958]
[1757208580132,7.98,202.45,202.34,2.41806958]
[1757208580327,0.86018316,202.46,202.35,17.20246397]
[1757208580631,7.98,202.45,202.36,9.12246397]
[1757208580828,7.98,202.45,202.37,4.42744958]
[1757208581127,2.41806958,202.43,202.38,4.42744958]
[1757208581323,2.41806958,202.43,202.39,0.03207634]
[1757208581324,129.78,202.42,202.39,0.03207634]
[1757208583424,14.87,202.45,202.39,0.03207634]
[1757208583425,121.8,202.41,202.39,0.03207634]
[1757208583732,129.78,202.41,202.39,0.03207634]
[1757208584128,7.98,202.4,202.39,0.03207634]
[1757208585030,0.86018316,202.46,202.39,0.03207634]
[1757208585230,129.78,202.45,202.39,0.03207634]
[1757208585833,0.86018316,202.46,202.4,12.51200484]
[1757208586134,121.84,202.44,202.42,8.08]
[1757208587526,129.82,202.44,202.4,8.08]
[1757208587731,129.82,202.44,202.41,12.51304177]
[1757208587933,129.82,202.44,202.41,8.08]
[1757208588333,129.82,202.44,202.42,4.43413294]
[1757208588534,129.82,202.44,202.41,8.08]
[1757208590439,7.8,202.43,202.4,7.43]
[1757208590638,7.8,202.43,202.41,4.43701819]
[1757208590839,7.8,202.43,202.4,7.43]
[1757208591035,7.8,202.43,202.41,4.4370132]
[1757208591235,7.8,202.43,202.4,7.43]
[1757208591437,7.8,202.43,202.41,4.43762629]
[1757208591636,7.8,202.43,202.4,7.43]
[1757208591936,7.8,202.43,202.41,4.43762629]
[1757208592136,7.8,202.43,202.4,7.43]
[1757208592337,7.8,202.43,202.41,4.43762629]
[1757208592539,7.8,202.43,202.4,7.43]
[1757208592841,7.8,202.43,202.41,4.43782842]
[1757208593037,7.8,202.43,202.4,7.43]
[1757208593240,7.8,202.43,202.41,4.43801837]
[1757208593443,7.8,202.43,202.4,7.43]
[1757208593643,121.84,202.44,202.41,4.43810127]
[1757208593840,7.8,202.43,202.39,0.03207634]
[1757208594142,121.84,202.44,202.4,4.43845402]
[1757208594332,0.86018316,202.46,202.4,7.43]
[1757208594538,7.8,202.47,202.39,0.03207634]
[1757208594539,121.98,202.45,202.41,11.86814885]
[1757208594735,7.8,202.44,202.41,7.43]
[1757208598344,7.8,202.44,202.39,0.03207634]
[1757208598546,7.8,202.44,202.41,7.43]
[1757208598746,7.8,202.44,202.39,0.03207634]
[1757208598948,7.8,202.44,202.41,7.43]
[1757208600245,7.8,202.44,202.39,0.03207634]
[1757208600549,0.86006623,202.48,202.4,4.46963319]
[1757208600550,121.88,202.46,202.4,4.46963319]
[1757208600743,7.8,202.45,202.42,7.43]
[1757208601847,7.8,202.45,202.4,7.43]
[1757208602043,7.8,202.46,202.41,4.46976924]
[1757208602250,122.04,202.45,202.42,11.89976924]
[1757208602450,122.04,202.45,202.43,4.46976924]
[1757208602646,122.04,202.45,202.42,7.43]
[1757208602851,122.04,202.45,202.43,4.46856441]
[1757208603048,122.04,202.45,202.42,7.43]
[1757208603246,129.84,202.45,202.43,4.46856616]
[1757208603449,129.84,202.45,202.42,7.43]
[1757208603642,129.84,202.45,202.43,4.46857878]
[1757208603848,129.84,202.45,202.42,7.43]
[1757208604052,129.84,202.45,202.43,4.46857878]
[1757208604249,129.84,202.45,202.42,7.43]
[1757208604953,122.04,202.45,202.42,7.43]
[1757208605152,7.8,202.44,202.42,7.43]
[1757208605555,0.86006623,202.48,202.42,7.43]
[1757208605853,59.9,202.47,202.43,4.46799462]
[1757208606052,59.9,202.47,202.44,7.43]
[1757208606657,67.7,202.47,202.44,7.43]
[1757208610053,67.7,202.47,202.37,4.4459]
[1757208610054,115.0,202.53,202.45,4.46688499]
[1757208610254,7.8,202.52,202.43,9.84806958]
[1757208610455,11.07794455,202.52,202.44,4.46578281]
[1757208610659,25.94794455,202.52,202.4,7.43]
[1757208610954,25.94794455,202.52,202.41,4.46651662]
[1757208611159,25.94794455,202.52,202.42,4.46651662]
[1757208611350,25.94794455,202.52,202.4,7.43]
[1757208611351,7.8,202.48,202.4,7.43]
[1757208611556,7.8,202.46,202.4,7.43]
[1757208614258,7.8,202.46,202.41,4.46928019]
[1757208614458,7.8,202.46,202.42,4.46928019]
[1757208614660,42.56,202.47,202.4,7.43]
[1757208614858,42.56,202.47,202.41,4.46928019]
[1757208615062,22.67,202.46,202.42,4.46928019]
[1757208615260,22.67,202.46,202.37,7.43]
[1757208615455,22.67,202.46,202.38,4.46999075]
[1757208615759,22.67,202.46,202.39,4.46999075]
[1757208615960,22.67,202.46,202.4,4.46999075]
[1757208616258,22.67,202.46,202.37,7.43]
[1757208616560,22.67,202.46,202.38,4.47010305]
[1757208616853,22.67,202.46,202.39,4.47010305]
[1757208617059,22.67,202.46,202.4,4.47010305]
[1757208617262,7.8,202.46,202.37,7.43]
[1757208617455,7.8,202.46,202.38,4.46937178]
[1757208617654,7.8,202.46,202.39,4.46937178]
[1757208617956,7.8,202.46,202.4,4.46937178]
[1757208618159,7.8,202.46,202.37,7.43]
[1757208618359,7.8,202.46,202.38,4.46964987]
[1757208618557,7.8,202.46,202.39,4.46964987]
[1757208618756,7.8,202.46,202.4,4.46964987]
[1757208619062,7.8,202.46,202.42,7.82]
[1757208619261,7.8,202.46,202.43,12.28701258]
[1757208619559,7.8,202.46,202.43,7.82]
[1757208620559,7.99,202.49,202.33,7.82]
[1757208620856,7.99,202.49,202.39,7.82]
[1757208621160,10.40806958,202.49,202.4,4.46665127]
[1757208621364,10.40806958,202.49,202.41,4.46665127]
[1757208621557,10.40806958,202.49,202.42,4.46665127]
[1757208621757,10.40806958,202.49,202.39,7.82]
[1757208621961,130.59,202.49,202.42,7.82]
[1757208622158,130.59,202.49,202.43,4.46742867]
[1757208622359,7.99,202.48,202.45,7.82]
[1757208622659,122.6,202.5,202.42,7.82]
[1757208622851,122.6,202.5,202.43,12.28619407]
[1757208623056,122.6,202.5,202.44,4.46619407]
[1757208623357,122.6,202.5,202.43,7.82]
[1757208623557,122.6,202.5,202.44,4.46628084]
[1757208623761,7.99,202.49,202.42,7.82]
[1757208624061,7.99,202.49,202.43,4.4677776]
[1757208624261,7.99,202.49,202.42,7.82]
[1757208624450,7.99,202.49,202.43,4.46784251]
[1757208624650,7.99,202.49,202.42,7.82]
[1757208624854,7.99,202.49,202.43,4.46784251]
[1757208625055,7.99,202.49,202.42,7.82]
[1757208625251,7.99,202.49,202.43,4.46809168]
[1757208625456,7.99,202.49,202.42,7.82]
[1757208625663,7.99,202.49,202.43,4.46804566]
[1757208625963,7.99,202.49,202.42,7.82]
[1757208626162,7.99,202.49,202.43,4.46804566]
[1757208626358,7.99,202.49,202.42,7.82]
[1757208626559,7.99,202.49,202.43,4.46845613]
[1757208626758,7.99,202.49,202.42,7.82]
[1757208627060,7.99,202.49,202.43,4.46845613]
[1757208627356,7.99,202.49,202.42,7.82]
[1757208627559,1.54700851,202.48,202.43,4.46930847]
[1757208627761,1.54700851,202.48,202.42,7.82]
[1757208627960,1.54700851,202.48,202.43,4.46930847]
[1757208628162,7.99,202.47,202.41,1.54700851]
[1757208628460,7.99,202.47,202.42,4.46906175]
[1757208628662,1.54700851,202.48,202.43,4.46906175]
[1757208628864,7.99,202.47,202.41,1.54700851]
[1757208629060,7.99,202.47,202.42,4.46937466]
[1757208629258,7.99,202.47,202.43,4.46937466]
[1757208629458,7.99,202.47,202.44,4.46937466]
[1757208629654,7.99,202.47,202.39,7.82]
[1757208629856,7.99,202.45,202.4,4.47325998]
[1757208630056,1.54700851,202.46,202.41,4.47325998]
[1757208630261,7.99,202.45,202.42,4.47325998]
[1757208630563,122.6,202.5,202.43,9.36700851]
[1757208630564,14.83,202.5,202.43,9.36700851]
[1757208630764,14.83,202.5,202.44,4.47255356]
[1757208630966,7.99,202.51,202.45,9.36700851]
[1757208637368,7.99,202.51,202.45,7.82]
[1757208641776,130.29,202.51,202.45,7.82]
[1757208642480,146.66700851,202.51,202.43,1.54700851]
[1757208642681,146.66700851,202.51,202.44,4.47085638]
[1757208642877,146.66700851,202.51,202.43,1.54700851]
[1757208643071,146.66700851,202.51,202.44,4.47107212]
[1757208643277,146.66700851,202.51,202.43,1.54700851]
[1757208643478,146.66700851,202.51,202.44,4.47120246]
[1757208643781,146.66700851,202.51,202.43,1.54700851]
[1757208643983,146.66700851,202.51,202.44,4.47145451]
[1757208644183,146.66700851,202.51,202.43,1.54700851]
[1757208646888,146.66700851,202.51,202.42,7.82]
[1757208647088,146.66700851,202.51,202.43,1.54700851]
[1757208648889,24.36700851,202.51,202.43,1.54700851]
[1757208649090,7.6,202.49,202.43,1.54700851]
[1757208650985,8.45987497,202.52,202.44,8.06]
[1757208651192,7.6,202.5,202.36,8.06]
[1757208651490,7.6,202.5,202.43,1.54700851]
[1757208651692,0.85987497,202.52,202.47,1.54700851]
[1757208651886,0.85987497,202.52,202.48,8.06]
[1757208652091,0.85987497,202.52,202.49,9.60700851]
[1757208652291,123.14,202.51,202.49,9.60700851]
[1757208652890,123.14,202.51,202.49,8.06]
[1757208653089,130.74,202.51,202.48,1.54700851]
[1757208653288,130.74,202.51,202.48,9.60700851]
[1757208655491,123.14,202.51,202.48,1.54700851]
[1757208655996,7.6,202.5,202.46,9.60700851]
[1757208656193,8.34373636,202.6,202.49,8.06]
[1757208656393,9.14700851,202.61,202.54,1.54700851]
[1757208656595,41.60700851,202.61,202.54,1.54700851]
[1757208656895,41.60700851,202.61,202.52,1.54700851]
[1757208657089,41.60700851,202.61,202.53,4.45836594]
[1757208657287,40.06,202.61,202.54,5.19461834]
[1757208657490,40.06,202.61,202.54,1.54700851]
[1757208657788,40.06,202.61,202.53,1.54700851]
[1757208657994,7.6,202.59,202.51,9.60700851]
[1757208658197,7.6,202.59,202.52,5.19561732]
[1757208658397,9.14700851,202.59,202.53,5.19561732]
[1757208658598,7.6,202.58,202.51,9.60700851]
[1757208658799,7.6,202.58,202.52,5.19294925]
[1757208659001,7.6,202.58,202.53,5.19294925]
[1757208659201,7.6,202.58,202.51,9.60700851]
[1757208659501,7.6,202.58,202.52,5.19079898]
[1757208659697,7.6,202.58,202.51,9.60700851]
[1757208659897,7.6,202.58,202.52,5.19079898]
[1757208660092,7.6,202.58,202.51,9.60700851]
[1757208660304,7.6,202.56,202.49,1.54700851]
[1757208660491,55.32,202.55,202.49,1.54700851]
[1757208660692,7.6,202.54,202.47,9.60700851]
[1757208660897,7.6,202.57,202.53,9.60700851]
[1757208661201,7.6,202.57,202.54,5.18995479]
[1757208661397,0.85959885,202.59,202.55,1.54700851]
[1757208661596,7.6,202.6,202.57,1.54700851]
[1757208662302,133.04,202.6,202.57,9.60700851]
[1757208662491,125.44,202.6,202.55,1.54700851]
[1757208662898,7.6,202.59,202.53,1.54700851]
[1757208664000,7.6,202.57,202.48,8.06]
[1757208664208,7.6,202.55,202.54,0.03550359]
[1757208664400,149.45700851,202.55,202.54,0.03550359]
[1757208664596,149.45700851,202.55,202.46,1.54700851]
[1757208664796,7.6,202.52,202.46,1.54700851]
[1757208665002,7.6,202.52,202.45,8.06]
[1757208665194,7.6,202.52,202.44,1.54700851]
[1757208665403,7.6,202.52,202.45,5.11491706]
[1757208665699,7.6,202.52,202.44,1.54700851]
[1757208666007,7.6,202.52,202.45,5.11516654]
[1757208666205,7.6,202.52,202.44,1.54700851]
[1757208666901,1.54700851,202.51,202.44,1.54700851]
[1757208668005,1.54700851,202.51,202.42,8.06]
[1757208668006,7.6,202.48,202.42,9.60700851]
[1757208668310,132.96,202.48,202.42,9.60700851]
[1757208668913,132.96,202.48,202.42,8.06]
[1757208669110,132.96,202.48,202.42,9.60700851]
[1757208672514,132.96,202.48,202.42,1.54700851]
[1757208672908,134.50700851,202.48,202.42,1.54700851]
[1757208673812,134.50700851,202.48,202.4,1.54700851]
[1757208674011,134.50700851,202.48,202.41,9.58426742]
[1757208674211,134.50700851,202.48,202.4,1.54700851]
[1757208674417,134.50700851,202.48,202.41,9.58615709]
[1757208674615,134.50700851,202.48,202.42,9.58615709]
[1757208674816,126.90700851,202.48,202.43,5.12225752]
[1757208675014,7.6,202.47,202.4,1.54700851]
[1757208675216,7.6,202.47,202.41,9.58699023]
[1757208675416,126.90700851,202.48,202.42,9.58699023]
[1757208675716,126.90700851,202.48,202.43,9.58699023]
[1757208675918,7.6,202.47,202.4,1.54700851]
[1757208676120,7.6,202.47,202.41,9.58725822]
[1757208676309,126.90700851,202.48,202.42,9.58725822]
[1757208676511,7.6,202.47,202.43,9.58725822]
[1757208676717,7.6,202.47,202.39,8.06]
[1757208676916,7.6,202.47,202.4,9.58713886]
[1757208677117,7.6,202.47,202.41,9.58713886]
[1757208677418,126.90700851,202.48,202.42,9.58713886]
[1757208677621,7.6,202.47,202.43,9.58713886]
[1757208677819,7.6,202.47,202.39,9.60700851]
[1757208678014,7.6,202.47,202.4,9.58701834]
[1757208678208,7.6,202.47,202.41,11.13402685]
[1757208678414,141.73700851,202.48,202.42,9.58701834]
[1757208678612,7.6,202.47,202.4,1.54700851]
[1757208678918,7.6,202.45,202.41,17.6476904]
[1757208679123,7.6,202.45,202.42,9.5876904]
[1757208679412,7.6,202.45,202.43,5.12310044]
[1757208679617,7.6,202.45,202.41,8.06]
[1757208679813,7.6,202.45,202.42,9.58732882]
[1757208680016,7.6,202.45,202.43,5.12287817]
[1757208680217,7.6,202.45,202.41,8.06]
[1757208680412,7.6,202.45,202.42,9.58629492]
[1757208680612,7.6,202.45,202.43,5.1223312]
[1757208680819,7.6,202.45,202.41,8.06]
[1757208681023,7.6,202.45,202.42,9.58628966]
[1757208681226,7.6,202.45,202.43,5.12232838]
[1757208681411,7.6,202.45,202.41,8.06]
[1757208681613,7.6,202.45,202.42,9.58613053]
[1757208681917,7.6,202.45,202.43,5.12224335]
[1757208682117,7.6,202.45,202.41,8.06]
[1757208682321,7.6,202.45,202.42,9.5862787]
[1757208682524,7.6,202.45,202.43,5.12231978]
[1757208682820,7.6,202.45,202.41,8.06]
[1757208683022,7.6,202.45,202.42,9.58590928]
[1757208683217,7.6,202.45,202.43,5.12212513]
[1757208683422,7.6,202.45,202.41,8.06]
[1757208683622,7.6,202.45,202.42,9.58581005]
[1757208683927,7.6,202.45,202.43,5.12207211]
[1757208684125,7.6,202.45,202.41,8.06]
[1757208684324,7.6,202.45,202.42,5.13234966]
[1757208684530,7.6,202.45,202.39,1.54700851]
[1757208684724,7.6,202.45,202.41,8.12]
[1757208684924,7.6,202.45,202.42,13.25234966]
[1757208685130,7.6,202.45,202.42,8.12]
[1757208688727,124.88,202.46,202.42,8.12]
[1757208689133,7.84,202.45,202.42,8.12]
[1757208690930,14.83,202.48,202.42,8.12]
[1757208691132,4.945,202.54,202.37,2.41740228]
[1757208691133,7.84,202.55,202.47,2.41740228]
[1757208691334,7.84,202.55,202.48,17.7163014]
[1757208691536,7.84,202.55,202.49,9.5963014]
[1757208691829,7.84,202.55,202.51,8.12]
[1757208697342,7.84,202.55,202.48,8.12]
[1757208699247,22.67,202.55,202.48,8.12]
[1757208702846,22.67,202.55,202.44,8.12]
[1757208702847,25.08740228,202.55,202.44,8.12]
[1757208703041,22.67,202.55,202.44,8.12]
[1757208703346,25.08740228,202.55,202.44,8.12]
[1757208703945,14.83,202.51,202.4,2.41740228]
[1757208704145,7.84,202.49,202.41,17.71016145]
[1757208704450,7.84,202.49,202.42,9.59016145]
[1757208704743,7.84,202.49,202.41,8.12]
[1757208704744,7.84,202.49,202.43,9.59016145]
[1757208704949,14.83,202.49,202.44,5.12801286]
[1757208705142,7.84,202.48,202.41,8.12]
[1757208705347,7.84,202.48,202.42,9.52281335]
[1757208705646,7.84,202.48,202.43,9.52281335]
[1757208705842,14.83,202.49,202.44,9.52281335]
[1757208706047,7.84,202.48,202.41,8.12]
[1757208706352,7.84,202.48,202.42,9.52313604]
[1757208706547,14.83,202.49,202.43,9.52313604]
[1757208706748,7.84,202.48,202.44,9.52313604]
[1757208706944,7.84,202.48,202.41,8.12]
[1757208707149,7.84,202.48,202.42,9.52521186]
[1757208707350,7.84,202.48,202.43,9.52521186]
[1757208707543,14.83,202.49,202.44,9.52521186]
[1757208707749,7.84,202.48,202.41,8.12]
[1757208707950,7.84,202.48,202.42,9.52880297]
[1757208708152,14.83,202.49,202.43,9.52880297]
[1757208708344,14.83,202.49,202.44,9.52880297]
[1757208708547,7.84,202.48,202.41,8.12]
[1757208708751,7.84,202.48,202.42,9.5316894]
[1757208708953,7.84,202.48,202.43,9.5316894]
[1757208709147,7.84,202.48,202.44,17.4816894]
[1757208709350,7.84,202.48,202.45,9.5316894]
[1757208709548,7.84,202.48,202.44,7.95]
[1757208709749,14.83,202.49,202.45,9.53409963]
[1757208710054,8.0,202.48,202.44,7.95]
[1757208710951,14.83,202.49,202.44,7.95]
[1757208712554,8.0,202.48,202.44,7.95]
[1757208712949,14.83,202.49,202.44,7.95]
[1757208713348,8.0,202.48,202.44,7.95]
[1757208713956,14.83,202.49,202.44,7.95]
[1757208714151,8.0,202.48,202.44,7.95]
[1757208714351,14.83,202.49,202.44,7.95]
[1757208714552,8.0,202.48,202.44,7.95]
[1757208714951,8.0,202.48,202.4,2.41740228]
[1757208715156,8.0,202.48,202.42,7.95]
[1757208715451,8.0,202.48,202.44,7.95]
[1757208715656,14.83,202.49,202.44,7.95]
[1757208715958,8.0,202.48,202.44,7.95]
[1757208716256,14.83,202.49,202.44,7.95]
[1757208716756,8.0,202.48,202.44,7.95]
[1757208717756,14.83,202.49,202.44,7.95]
[1757208717955,2.41740228,202.52,202.44,7.95]
[1757208717956,8.0,202.48,202.44,7.95]
[1757208719253,14.83,202.49,202.44,7.95]
[1757208719849,8.0,202.48,202.44,7.95]
[1757208720052,14.83,202.49,202.44,7.95]
[1757208720357,8.0,202.48,202.41,7.95]
[1757208720553,8.0,202.48,202.42,9.53679816]
[1757208720755,14.83,202.49,202.43,9.53679816]
[1757208720953,14.83,202.49,202.44,9.53679816]
[1757208721147,14.83,202.49,202.4,2.41740228]
[1757208721456,14.83,202.51,202.44,7.95]
[1757208721646,8.0,202.57,202.47,7.95]
[1757208721850,8.0,202.57,202.49,7.95]
[1757208722050,8.0,202.57,202.5,9.53718074]
[1757208722251,8.0,202.57,202.49,7.95]
[1757208722452,8.0,202.57,202.5,9.52968039]
[1757208722655,22.83,202.57,202.49,7.95]
[1757208722857,22.83,202.57,202.5,9.53002301]
[1757208723051,22.83,202.57,202.49,7.95]
[1757208723356,22.83,202.57,202.5,9.52913747]
[1757208723559,22.83,202.57,202.49,7.95]
[1757208723957,22.83,202.57,202.5,9.52914248]
[1757208724161,22.83,202.57,202.49,7.95]
[1757208724357,22.83,202.57,202.5,9.52823122]
[1757208724557,22.83,202.57,202.49,7.95]
[1757208724758,22.83,202.57,202.5,9.52823122]
[1757208724959,22.83,202.57,202.49,7.95]
[1757208725156,22.83,202.57,202.5,9.52823127]
[1757208725359,22.83,202.57,202.49,7.95]
[1757208725556,22.83,202.57,202.5,9.52818046]
[1757208725757,123.64,202.56,202.49,7.95]
[1757208726060,123.64,202.56,202.5,9.52779691]
[1757208726255,123.64,202.56,202.49,7.95]
[1757208726460,123.64,202.56,202.5,9.52753516]
[1757208726759,340.02,202.59,202.5,7.95]
[1757208727058,14.83,202.62,202.53,7.95]
[1757208727258,14.83,202.62,202.55,7.95]
[1757208727657,8.0,202.61,202.55,7.95]
[1757208728258,22.83,202.61,202.55,7.95]
[1757208731963,22.83,202.61,202.52,7.95]
[1757208733968,22.83,202.61,202.54,7.95]
[1757208734161,131.44,202.61,202.54,10.36740228]
[1757208738764,8.0,202.64,202.55,7.95]
[1757208738965,123.26,202.63,202.58,8.06]
[1757208739364,15.68938658,202.66,202.58,7.86]
[1757208739365,123.28,202.64,202.58,7.86]
[1757208740269,123.3,202.64,202.58,7.86]
[1757208741767,123.28,202.65,202.58,7.86]
[1757208745863,7.5,202.64,202.58,7.86]
[1757208746067,7.5,202.64,202.56,2.41740228]
[1757208746270,22.33,202.64,202.55,8.06]
[1757208749570,7.5,202.62,202.56,1.54477222]
[1757208751864,7.5,202.6,202.55,8.06]
[1757208752269,7.5,202.6,202.54,1.54477222]
[1757208753574,7.5,202.6,202.52,8.06]
[1757208753765,1.54477222,202.59,202.53,9.60477222]
[1757208754171,90.10477222,202.59,202.53,9.60477222]
[1757208755170,7.5,202.58,202.55,1.54477222]
[1757208755973,81.06,202.59,202.55,1.54477222]
[1757208756368,7.5,202.58,202.55,1.54477222]
[1757208756672,81.06,202.59,202.55,1.54477222]
[1757208756976,7.5,202.58,202.51,1.54477222]
[1757208757168,82.60477222,202.59,202.51,1.54477222]
[1757208757169,7.5,202.56,202.51,1.54477222]
[1757208757675,81.06,202.59,202.48,128.29472059]
[1757208757875,81.06,202.59,202.51,1.54477222]
[1757208757876,1.54477222,202.57,202.51,1.54477222]
[1757208758075,81.06,202.59,202.51,1.54477222]
[1757208758276,9.04477222,202.58,202.51,1.54477222]
[1757208758972,7.5,202.58,202.51,1.54477222]
[1757208760477,1.54477222,202.57,202.51,1.54477222]
[1757208760675,7.5,202.56,202.51,1.54477222]
[1757208760873,1.54477222,202.57,202.51,1.54477222]
[1757208761075,7.5,202.56,202.51,1.54477222]
[1757208761572,9.04477222,202.58,202.51,1.54477222]
[1757208763171,9.04477222,202.58,202.49,8.06]
[1757208763172,7.5,202.55,202.47,8.06]
[1757208763475,7.5,202.53,202.48,5.05664525]
[1757208763675,7.5,202.53,202.47,9.60477222]
[1757208763880,7.5,202.53,202.48,5.05810668]
[1757208764076,7.5,202.53,202.47,9.60477222]
[1757208764273,1.54477222,202.54,202.47,9.60477222]
[1757208764274,1.54477222,202.54,202.48,9.52096624]
[1757208764471,7.5,202.53,202.49,5.06030724]
[1757208764675,7.5,202.53,202.47,1.54477222]
[1757208764877,7.5,202.53,202.48,9.52096624]
[1757208765077,1.54477222,202.54,202.49,5.06030724]
[1757208765377,1.54477222,202.54,202.47,1.54477222]
[1757208765378,7.5,202.53,202.47,1.54477222]
[1757208765579,9.04477222,202.54,202.48,9.52014068]
[1757208765777,7.5,202.53,202.49,13.11986846]
[1757208765974,1.54477222,202.54,202.49,8.06]
[1757208766178,7.5,202.53,202.49,8.06]
[1757208766480,1.54477222,202.54,202.49,8.06]
[1757208766876,7.5,202.53,202.49,8.06]
[1757208767273,1.54477222,202.54,202.49,8.06]
[1757208767475,7.5,202.53,202.49,8.06]
[1757208767673,1.54477222,202.54,202.49,8.06]
[1757208768075,7.5,202.53,202.49,8.06]
[1757208768981,81.06,202.59,202.52,7.51]
[1757208768982,9.04477222,202.59,202.52,7.51]
[1757208769179,9.04477222,202.59,202.54,1.54477222]
[1757208769387,7.5,202.59,202.54,1.54477222]
[1757208770085,7.5,202.59,202.55,7.51]
[1757208770284,7.5,202.59,202.54,1.54477222]
[1757208770483,7.5,202.59,202.55,7.51]
[1757208771685,1.54477222,202.61,202.55,7.51]
[1757208771986,7.95,202.6,202.55,7.51]
[1757208772484,9.49477222,202.61,202.55,7.51]
[1757208776083,7.95,202.58,202.52,1.54477222]
[1757208776285,1.54477222,202.59,202.53,9.51608777]
[1757208776486,1.54477222,202.59,202.54,9.51608777]
[1757208776685,7.95,202.58,202.52,1.54477222]
[1757208776885,1.54477222,202.59,202.53,9.51608777]
[1757208777083,7.95,202.58,202.54,9.51608777]
[1757208777287,7.95,202.58,202.52,1.54477222]
[1757208777483,7.95,202.58,202.53,9.51610755]
[1757208777688,1.54477222,202.59,202.54,9.51610755]
[1757208777887,7.95,202.58,202.52,9.05477222]
[1757208778192,1.54477222,202.57,202.53,9.51610755]
[1757208778394,7.95,202.56,202.48,9.05477222]
[1757208778695,1.54477222,202.55,202.49,9.52173565]
[1757208778891,7.95,202.54,202.5,12.56980869]
[1757208779095,7.95,202.54,202.51,5.05980869]
[1757208779397,7.95,202.54,202.5,7.51]
[1757208779695,7.95,202.54,202.51,5.05858296]
[1757208779896,7.95,202.54,202.5,7.51]
[1757208780093,31.68477222,202.57,202.52,7.51]
[1757208781094,7.95,202.56,202.52,7.51]
[1757208781296,31.68477222,202.57,202.52,7.51]
[1757208783902,7.95,202.56,202.52,7.51]
[1757208784102,31.68477222,202.57,202.52,7.51]
[1757208784299,7.95,202.56,202.52,7.51]
[1757208784700,9.49477222,202.55,202.52,7.51]
[1757208784901,1.54477222,202.55,202.5,1.54477222]
[1757208785100,7.95,202.54,202.5,9.05477222]
[1757208785495,1.54477222,202.55,202.5,9.05477222]
[1757208785700,7.95,202.54,202.5,7.51]
[1757208786005,7.95,202.54,202.48,1.54477222]
[1757208786196,7.95,202.54,202.49,7.51]
[1757208786392,7.95,202.54,202.48,1.54477222]
[1757208786594,7.95,202.54,202.49,7.51]